Cogmind - Beta 12 @@@ ROGUE MODE // 2023.04.05 @ 23:18:51 Player: btmk16 Result: Destroyed by as-20838 with Assembled Focal Cannon Performance ------------- Evolutions (3) 1500 Regions Visited (12) 2400 Robots Destroyed (99) 495 Value Destroyed (3108) 3108 Prototype IDs (41) 820 Alien Tech Used (0) 0 Bonus (2473) 2473 TOTAL SCORE: 10796 Bonus ------- High Alert Combat Kills 48 Aligned with FarCom 300 Met Imprinter 300 Destroyed Z-Imprinter 1000 Triggered Deep Caves Wall 500 Exposed GOLEM Chamber 500 Friendly Fire -175 Cogmind --------- Core Integrity 0/700 Matter 285/300 Energy 100/100 System Corruption 0% Temperature Cool (18) Movement Hovering (270) Ox3 Location -7/Deep Caves Parts ------- > --- POWER (1) -------- Zionite Light DM Reactor > --- PROPULSION (4) --- Zionite Glidesys I > --- UTILITY (6) ------ Experimental Heat Sink High-capacity Storage Unit Improved Signal Interpreter Advanced Targeting Computer > --- WEAPON (2) ------- (None) > --- INVENTORY (20) --- Experimental Heat Sink Experimental Heat Sink Zionite Biocell (600) Zionite Biocell (600) Zionite Metafield Generator Advanced Terrain Scan Processor Advanced Targeting Computer Improved Reaction Control System Experimental Reaction Control System Advanced Phase Shifter Zionite Heavy Carapace Phasing AFG AWS/Thermal Rocket Launcher RU-N14's Throwing Claymores (9) RU-N14's Throwing Claymores (10) RU-N14's Throwing Claymores (10) Powered Hammer Peak State ------------ > --- POWER ------------ Zionite Light DM Reactor > --- PROPULSION ------- Zionite Glidesys I Zionite Glidesys I Zionite Glidesys I Zionite Glidesys I > --- UTILITY ---------- Experimental Heat Sink Improved Signal Interpreter Advanced Targeting Computer Zionite Weapon Casing Zionite Weapon Casing Zionite Light Carapace > --- WEAPON ----------- AWS/Thermal > --- INVENTORY -------- Rocket Launcher RU-N14's Throwing Claymores RU-N14's Throwing Claymores RU-N14's Throwing Claymores RU-N14's Throwing Claymores [Rating: 82] Favorites ----------- Power Light Deuterium Engine Engine Light Deuterium Engine Power Core Light Nuclear Core Reactor Zionite Light DM Reactor Propulsion Light Treads Treads Light Treads Wheel Compact Wheel Hover Unit Zionite Glidesys I Utility High-capacity Storage Unit Device Improved Cooling System Storage High-capacity Storage Unit Processor Advanced Targeting Computer Hackware Hacking Suite Protection Hardened Medium Armor Plating Weapon Heavy Assault Rifle Energy Gun Heavy Riot Gun Energy Cannon Advanced Beam Cannon Ballistic Gun Heavy Assault Rifle Launcher Grenade Launcher Special Weapon RU-N14's Throwing Claymores Impact Weapon Great Maul Slashing Weapon Axe Build | -11 -10 -10 -9 -9 -9 -8 -8 -7 -7 -7 -7 -7 ------- Run | Jun Mat Min Mat Min Exi Min Mat Fac Low Low Zio Dee Slots Evolved 6 | . . . 2 . . . 2 2 . . . . Power . | . . . . . . . . . . . . . Propulsion 2 | . . . 1 . . . 1 . . . . . Utility 4 | . . . 1 . . . 1 2 . . . . Weapon . | . . . . . . . . . . . . . Parts Attached 144 | 7 5 8 9 5 . . 23 17 10 3 5 52 Power 13 | 1 1 1 . . . . 1 4 . . . 5 Engine 4 | 1 1 1 . . . . . 1 . . . . Core 4 | . . . . . . . 1 3 . . . . Reactor 5 | . . . . . . . . . . . . 5 Propulsion 30 | 2 . 1 4 1 . . 6 . 3 . . 13 Treads 16 | 2 . 1 4 1 . . 5 . 3 . . . Leg . | . . . . . . . . . . . . . Wheel 1 | . . . . . . . 1 . . . . . Hover 13 | . . . . . . . . . . . . 13 Flight . | . . . . . . . . . . . . . Utility 40 | 2 2 1 3 . . . 4 5 3 . 1 19 Device 15 | 1 . . . . . . 2 3 2 . 1 6 Storage 8 | 1 1 . 2 . . . . . . . . 4 Processor 3 | . . . . . . . . 2 1 . . . Hackware 1 | . . . 1 . . . . . . . . . Protection 13 | . 1 1 . . . . 2 . . . . 9 Artifact . | . . . . . . . . . . . . . Weapon 61 | 2 2 5 2 4 . . 12 8 4 3 4 15 Energy Gun 11 | . . . . . . . . . 1 2 1 7 Energy Cannon 8 | . . . . . . . 1 2 1 1 1 2 Ballistic Gun 17 | 2 . 3 2 2 . . 6 2 . . . . Ballistic Cannon . | . . . . . . . . . . . . . Launcher 11 | . 2 2 . 2 . . 2 1 1 . 1 . Special Weapon 5 | . . . . . . . . . . . . 5 Impact Weapon 8 | . . . . . . . 2 3 1 . 1 1 Slashing Weapon 1 | . . . . . . . 1 . . . . . Piercing Weapon . | . . . . . . . . . . . . . Special Melee Weapon . | . . . . . . . . . . . . . Unidentified Prototypes 14 | . . . . . . . . 1 1 . 1 11 Parts Lost 28 | . . . . . . . 4 3 2 . . 19 Power 1 | . . . . . . . . . . . . 1 Propulsion 14 | . . . . . . . 1 1 1 . . 11 Utility 7 | . . . . . . . 1 1 . . . 5 Weapon 6 | . . . . . . . 2 1 1 . . 2 Highest Loss Streak 7 | . . . . . . . 2 1 2 . . 7 To Critical Strikes . | . . . . . . . . . . . . . Average Slot Usage (%) 96 | . 100 99 100 100 100 100 99 92 90 99 99 84 Engine 7 | . 14 14 11 11 11 11 7 1 7 7 7 1 Treads 27 | . 28 27 33 33 33 33 34 25 23 30 30 7 Hover 2 | . . . . . . . . . . . . 19 Device 11 | . 11 . . . . . 16 21 23 23 23 13 Storage 9 | . 14 14 11 11 11 11 9 7 7 7 7 7 Processor 6 | . . . . . . . . 6 14 15 15 15 Hackware 3 | . . . 11 11 11 11 1 . . . . . Protection 6 | . 2 14 11 11 11 11 9 5 . . . 5 Energy Gun 1 | . . . . . . . . . 4 7 1 3 Energy Cannon 1 | . . . . . . . . . 3 6 6 2 Ballistic Gun 11 | . 28 22 21 21 22 22 15 7 . . . . Impact Weapon 1 | . . . . . . . 1 5 3 . 5 . Naked Turns . | . . . . . . . . . . . . . Heaviest Build 83 | 13 24 31 58 58 58 58 64 68 63 62 83 83 Greatest Support 87 | 40 40 42 62 62 62 62 87 87 84 82 82 82 Greatest Overweight (x) 21 | . . 1 . . . . 3 1 1 . 1 21 Average Overweight (x) . | . . . . . . . . . . . . . Largest Inventory Capacity 20 | 8 10 10 20 20 20 20 20 20 20 20 20 20 Average Capacity 17 | 7 8 10 15 20 20 20 20 20 20 20 20 14 Most Carried 20 | 7 10 10 20 20 20 20 20 20 20 20 20 20 Average Carried 17 | 4 8 10 14 20 19 20 19 19 19 19 19 14 Final Capacity 20 | 8 10 10 20 20 20 20 20 20 20 20 20 20 Final Carried 20 | 6 10 10 20 20 20 20 20 20 20 20 20 20 Class Distribution -------------------- 51% | Scavenger-Mutant 48% | Mutant Dominant Class ---------------- Mutant | -10/Materials Mutant | -10/Mines Scavenger-Mutant | -9/Materials Scavenger-Mutant | -9/Mines Scavenger-Mutant | -9/Exiles Scavenger-Mutant | -8/Mines Scavenger-Mutant | -8/Materials Mutant | -7/Factory Mutant | -7/Lower Caves Mutant | -7/Lower Caves Mutant | -7/Zion Scavenger-Mutant | -7/Deep Caves Resources | -11 -10 -10 -9 -9 -9 -8 -8 -7 -7 -7 -7 -7 ----------- Run | Jun Mat Min Mat Min Exi Min Mat Fac Low Low Zio Dee Matter Collected 3012 | 285 173 180 511 203 12 36 461 314 325 37 55 420 Remotely . | . . . . . . . . . . . . . Salvage Created 4007 | 97 328 114 484 384 . 70 856 482 359 43 . 790 Parts 230 | 4 30 8 39 19 . 7 41 17 3 3 . 59 Haulers Intercepted 4 | . 2 . . . . . 2 . . . . . Recyclers Shooed 5 | 1 1 . . . . . 3 . . . . . Parts Field Recycled . | . . . . . . . . . . . . . Retrieved Matter . | . . . . . . . . . . . . . Parts Self-Destructed 3 | . . . . . . . . . . 3 . . Prevented . | . . . . . . . . . . . . . Kills | -11 -10 -10 -9 -9 -9 -8 -8 -7 -7 -7 -7 -7 ------- Run | Jun Mat Min Mat Min Exi Min Mat Fac Low Low Zio Dee Combat Hostiles Destroyed 82 | . 8 6 7 9 . 3 16 13 1 1 . 18 Melee 2 | . . . . . . . . 2 . . . . Guns 39 | . 8 2 7 3 . 3 8 . . 1 . 7 Cannons 6 | . . . . . . . 1 1 . . . 4 AOE 31 | . . 4 . 6 . . 6 7 1 . . 7 Classes Destroyed 18 | 2 5 1 2 1 . 1 2 1 2 . . 1 Worker 3 | . . . . . . 1 1 1 . . . . Builder 4 | . . . 2 1 . . 1 . . . . . Tunneler 3 | 1 . . . 1 . . . 1 . . . . Hauler 4 | . 2 . . . . . 2 . . . . . Recycler 5 | 1 . . 2 . . . 2 . . . . . Operator 1 | . 1 . . . . . . . . . . . Watcher 3 | . 1 . 1 . . . . 1 . . . . Swarmer 16 | . 6 3 . . . 3 4 . . . . . Grunt 29 | . 2 2 5 8 . . 5 7 . . . . Brawler 1 | . . . . 1 . . . . . . . . Duelist 1 | . . . . . . . 1 . . . . . Sentry 6 | . . . 2 . . . 4 . . . . . Hunter 5 | . . . . . . . 2 2 . 1 . . Programmer 5 | . . . . . . . . 4 1 . . . Z-Technician 5 | . . . . . . . . . . . . 5 Z-Light 11 | . . . . . . . . . . . . 11 Samaritan 3 | . . . . . . . . . 3 . . . Assembled 7 | . . 1 . . . . . . . . . 6 Mutant 1 | . . . . . . . . . 1 . . . Best Kill Streak 8 | 2 4 3 3 3 . 2 4 8 1 1 . 5 Combat Bots Only 7 | . 3 3 3 3 . 2 4 7 1 1 . 3 Max Kills in Single Turn 3 | 1 1 3 1 3 . 1 2 3 1 1 . 2 Gunslinging . | . . . . . . . . . . . . . Exploded 3 | . . 3 . 3 . . 2 2 1 . . 2 Melee 1 | . . . . . . . . 1 . . . . Uniques/NPCs Destroyed 1 | . . . . . . . . . . . . 1 Z-Imprinter (-7/Deep Caves) Combat | -11 -10 -10 -9 -9 -9 -8 -8 -7 -7 -7 -7 -7 -------- Run | Jun Mat Min Mat Min Exi Min Mat Fac Low Low Zio Dee Damage Taken 5394 | . 216 155 307 276 . 58 647 1004 164 118 . 2449 Core 860 | . 20 39 . 24 . . 61 128 21 22 . 545 Absorbed by Shields . | . . . . . . . . . . . . . Redirected to Shielding 113 | . . . . . . . . . . . . 113 Regen/Repaired (Parts) 126 | . . . . . . . . . . . 126 . Core Remaining (%) 89 | 100 . 76 . . . 94 88 . . . . . Volleys Fired 254 | 7 39 10 55 21 . 6 56 17 26 . . 17 Largest 2 | 2 2 2 2 2 . 2 2 2 1 . . 2 Hottest 132 | 40 40 56 43 56 . 43 63 126 68 . . 132 Shots Fired 506 | 14 78 19 110 40 . 12 100 20 26 5 1 81 Gun 435 | 14 78 17 110 37 . 12 95 5 . 5 1 61 Cannon 36 | . . . . . . . 2 8 17 . . 9 Launcher 24 | . . 2 . 3 . . 3 7 9 . . . Special 11 | . . . . . . . . . . . . 11 Kinetic 368 | 14 78 17 110 37 . 12 95 5 . . . . Thermal 83 | . . . . . . . . . 17 5 . 61 Explosive 35 | . . 2 . 3 . . 3 7 9 . . 11 Electromagnetic 20 | . . . . . . . 2 8 . . 1 9 Robot Hit Streak 15 | 5 12 6 9 8 . 5 15 4 13 6 . 10 Robot Miss Streak 4 | 4 2 1 4 2 . 3 4 1 2 1 . 2 Penetration Max . | . . . . . . . . . . . . . Secondary Targets 2 | . . 1 . . . . 1 . . . . . Max Gunslinging Chain 1 | . . 1 . . . . 1 . . . . . Autonomous 66 | . . . . . . . . . . 5 . 61 Shots Hit Robots 378 | 8 53 15 70 30 . 7 71 38 25 4 . 57 Core Hits 170 | 3 17 10 26 15 . 4 30 21 10 2 . 32 Critical Kills 1 | . 1 . . . . . . . . . . . Critical Parts Destroyed 7 | . . 1 1 1 . . 2 2 . . . . Critical Strikes 8 | . 1 1 1 1 . . 2 2 . . . . Destroy 4 | . 1 1 1 1 . . . . . . . . Smash 4 | . . . . . . . 2 2 . . . . Melee Attacks 68 | . . . . . . . 16 46 2 . 4 . Impact 68 | . . . . . . . 16 46 2 . 4 . Slashing . | . . . . . . . . . . . . . Piercing . | . . . . . . . . . . . . . Sneak Attacks 9 | . . . . . . . 4 3 2 . . . Combat Hostiles . | . . . . . . . . . . . . . Follow-up Attacks . | . . . . . . . . . . . . . Damage Inflicted 10819 | 102 658 344 930 707 . 103 1944 2285 821 119 . 2806 Guns 4581 | 102 658 168 929 393 . 103 892 27 . 119 . 1190 Cannons 637 | . . . . . . . 53 160 289 . . 135 Explosions 3066 | . . 176 . 313 . . 412 713 357 . . 1095 Melee 2147 | . . . . . . . 587 1385 175 . . . Ramming 2 | . . . 1 1 . . . . . . . . Kinetic 3272 | 102 658 168 929 393 . 103 892 27 . . . . Thermal 1666 | . . . . . . . . . 289 119 . 1258 Explosive 2998 | . . 176 . 313 . . 412 713 357 . . 1027 Electromagnetic 348 | . . . . . . . 53 160 . . . 135 Impact 2147 | . . . . . . . 587 1385 175 . . . Slashing 386 | . . . . . . . . . . . . 386 Piercing . | . . . . . . . . . . . . . Highest Corruption 6 | . . . . . . . . 6 6 6 6 . Average Corruption 5 | . . . . . . . . 3 6 6 6 . Corruption Purged 5 | . . . . . . . . 5 . . . . Corruption Blocked . | . . . . . . . . . . . . . Effects 51 | . . . . . . . . 15 16 12 8 . Message Errors 15 | . . . . . . . . 4 5 2 4 . Matter Fused 14 | . . . . . . . . 5 6 2 1 . Heat Flow Errors 3 | . . . . . . . . 1 . 2 . . Energy Discharges 7 | . . . . . . . . 1 3 3 . . Parts Fused 1 | . . . . . . . . 1 . . . . Data Loss (minor) 5 | . . . . . . . . 2 2 1 . . Data Loss (major) 2 | . . . . . . . . . . 1 1 . Misfires 1 | . . . . . . . . . . . 1 . Alerts 3 | . . . . . . . . 1 . 1 1 . Overload Shots . | . . . . . . . . . . . . . Overflow Damage 1219 | . . . . . . . 349 583 207 . . 80 Projectiles 83 | . . . . . . . . . 33 . . 50 Explosions 119 | . . . . . . . 16 7 66 . . 30 Melee 1017 | . . . . . . . 333 576 108 . . . Knockbacks 8 | . . . . . . . 2 6 . . . . Impact 8 | . . . . . . . 2 6 . . . . Kinetic . | . . . . . . . . . . . . . Secondary . | . . . . . . . . . . . . . Self-Inflicted Damage 114 | . . . . 51 . . 2 . 61 . . . Shots 9 | . . . . 2 . . 1 . 6 . . . Rammed 2 | . . . 1 1 . . . . . . . . Targets Rammed 2 | . . . 1 1 . . . . . . . . Kicked . | . . . . . . . . . . . . . Crushed . | . . . . . . . . . . . . . Highest Temperature 196 | . . 12 24 18 . . 36 196 . 193 . 60 Average Temperature 18 | . . 3 6 7 . . 12 106 . 114 . 26 Received Heat Transfer 1194 | . 72 69 159 126 . . 126 72 . . . 570 Siege Activations . | . . . . . . . . . . . . . Robots Corrupted 1 | . . . . . . . . 1 . . . . Combat Hostiles 1 | . . . . . . . . 1 . . . . Parts Fried 9 | . . . . . . . 3 5 . . . 1 Impact Corruptions 33 | . . . . . . . 9 20 4 . . . Robots Melted . | . . . . . . . . . . . . . Combat Hostiles . | . . . . . . . . . . . . . Parts Melted 4 | . . . . . . . . . . . . 4 Heat Transferred 1981 | . . . . . . . . . 518 148 . 1315 Parts Sabotaged . | . . . . . . . . . . . . . Parts Stolen . | . . . . . . . . . . . . . Parts Stripped . | . . . . . . . . . . . . . Power Chain Reactions 1 | . . . . . . . . . . . . 1 Missiles Intercepted . | . . . . . . . . . . . . . Alert | -11 -10 -10 -9 -9 -9 -8 -8 -7 -7 -7 -7 -7 ------- Run | Jun Mat Min Mat Min Exi Min Mat Fac Low Low Zio Dee Peak Influence 449 | 10 268 153 215 211 . 105 225 449 . . . . Initial 66 | . 6 26 2 . . . . 66 . . . . Average 103 | 5 143 50 65 50 . 40 94 253 . . . . Maximum Alert Level 2 | . 1 . 1 1 . . 1 2 . . . . Low Security (%) 84 | 100 89 100 98 87 . 100 97 39 . . . . Level 1 10 | . 10 . 1 12 . . 2 35 . . . . Level 2 4 | . . . . . . . . 24 . . . . Level 3 . | . . . . . . . . . . . . . Level 4 . | . . . . . . . . . . . . . Level 5 . | . . . . . . . . . . . . . High Security . | . . . . . . . . . . . . . Max Security . | . . . . . . . . . . . . . Squads Dispatched 10 | . 1 . 1 1 . . 2 5 . . . . Investigation 4 | . . . . 1 . . 1 2 . . . . Extermination 2 | . . . . . . . . 2 . . . . Reinforcement 3 | . 1 . 1 . . . 1 . . . . . Assault 1 | . . . . . . . . 1 . . . . Garrison . | . . . . . . . . . . . . . Intercept . | . . . . . . . . . . . . . Searches Triggered . | . . . . . . . . . . . . . Construction Impeded . | . . . . . . . . . . . . . Haulers Reinforced . | . . . . . . . . . . . . . Active Scanning Responses . | . . . . . . . . . . . . . Cargo Convoy Interrupts . | . . . . . . . . . . . . . Stealth | -11 -10 -10 -9 -9 -9 -8 -8 -7 -7 -7 -7 -7 --------- Run | Jun Mat Min Mat Min Exi Min Mat Fac Low Low Zio Dee Distress Signals 10 | . 1 . 4 . . . 4 1 . . . . Communications Jammed . | . . . . . . . . . . . . . Distress Signals . | . . . . . . . . . . . . . Times Spotted 116 | . 13 6 23 9 . 4 22 18 1 1 . 19 Peak Tracking Total 7 | . 5 3 7 3 . 3 4 5 1 1 . 3 Tactical Retreats 5 | . . . 2 . . 1 . 2 . . . . Traps | -11 -10 -10 -9 -9 -9 -8 -8 -7 -7 -7 -7 -7 ------- Run | Jun Mat Min Mat Min Exi Min Mat Fac Low Low Zio Dee Traps Triggered 5 | . . 2 . . . . 1 2 . . . . Indirectly . | . . . . . . . . . . . . . Trap Hack Attempts . | . . . . . . . . . . . . . Triggered . | . . . . . . . . . . . . . Disarmed . | . . . . . . . . . . . . . Reprogrammed . | . . . . . . . . . . . . . Reused . | . . . . . . . . . . . . . Traps Extracted . | . . . . . . . . . . . . . Installed . | . . . . . . . . . . . . . Triggered . | . . . . . . . . . . . . . Exploded 2 | . . . . . . . . . . . . 2 Machines | -11 -10 -10 -9 -9 -9 -8 -8 -7 -7 -7 -7 -7 ---------- Run | Jun Mat Min Mat Min Exi Min Mat Fac Low Low Zio Dee Machines Disabled 7 | . . . . . . . 1 2 . . 1 3 Max in Single Turn 1 | . . . . . . . 1 1 . . 1 1 Garrison Access 2 | . . . . . . . . 2 . . . . Machines Repaired . | . . . . . . . . . . . . . Machines Sabotaged . | . . . . . . . . . . . . . Overloaded Fab Kills . | . . . . . . . . . . . . . Hacking | -11 -10 -10 -9 -9 -9 -8 -8 -7 -7 -7 -7 -7 --------- Run | Jun Mat Min Mat Min Exi Min Mat Fac Low Low Zio Dee Machines Accessed 26 | . 1 3 4 1 2 . 5 9 . 1 . . Terminals 15 | . 1 2 4 . . . 4 4 . . . . Fabricators 2 | . . . . . . . . 2 . . . . Repair Stations 1 | . . . . . . . 1 . . . . . Recycling Units . | . . . . . . . . . . . . . Scanalyzers . | . . . . . . . . . . . . . Garrison Access 3 | . . . . . . . . 3 . . . . Total Hacks 62 | . 3 8 16 1 2 . 8 23 . 1 . . Successful 24 | . . 3 9 1 2 . 2 6 . 1 . . Failed 38 | . 3 5 7 . . . 6 17 . . . . Catastrophic 7 | . . . . . . . 2 5 . . . . Database Lockouts . | . . . . . . . . . . . . . Manual 38 | . . 8 13 . 1 . 6 5 . . 5 . Terminals 43 | . 3 7 16 . . . 7 10 . . . . Fabricators 7 | . . . . . . . . 7 . . . . Repair Stations 1 | . . . . . . . 1 . . . . . Recycling Units . | . . . . . . . . . . . . . Scanalyzers . | . . . . . . . . . . . . . Garrison Access 6 | . . . . . . . . 6 . . . . Terminal Hacks 13 | . . 1 5 1 2 . 1 2 . 1 . . Record 1 | . . . . . 1 . . . . . . . Robot Analysis 2 | . . . 2 . . . . . . . . . Prototype ID Bank 2 | . . . 1 . . . 1 . . . . . Open Door 3 | . . 1 . 1 . . . . . 1 . . Level Access Points 1 | . . . . . . . . 1 . . . . Branch Access Points 2 | . . . 1 . . . . 1 . . . . Hauler Manifests 1 | . . . 1 . . . . . . . . . EX-Prototype ID Bank 1 | . . . . . 1 . . . . . . . Fabricator Hacks 2 | . . . . . . . . 2 . . . . Network Status 1 | . . . . . . . . 1 . . . . Build 1 | . . . . . . . . 1 . . . . Repair Station Hacks . | . . . . . . . . . . . . . Recycling Unit Hacks . | . . . . . . . . . . . . . Scanalyzer . | . . . . . . . . . . . . . Garrison Access Hacks 1 | . . . . . . . . 1 . . . . Seal Access 1 | . . . . . . . . 1 . . . . Unauthorized Hacks 8 | . . 2 4 . . . 1 1 . . . . Terminals 8 | . . 2 4 . . . 1 1 . . . . Track 4 | . . 2 2 . . . . . . . . . Botnet 4 | . . . 2 . . . 1 1 . . . . Fabricators . | . . . . . . . . . . . . . Repair Stations . | . . . . . . . . . . . . . Recycling Units . | . . . . . . . . . . . . . Scanalyzers . | . . . . . . . . . . . . . Garrison Access . | . . . . . . . . . . . . . Data Cores Recovered . | . . . . . . . . . . . . . Used . | . . . . . . . . . . . . . Hacking Detections 16 | . 1 1 3 . . . 5 6 . . . . Full Trace Events 3 | . 1 . . . . . . 2 . . . . Feedback Events . | . . . . . . . . . . . . . Feedback Blocked . | . . . . . . . . . . . . . Robot Schematics Acquired 3 | . . . . . . . . . . . 3 . Robots Built . | . . . . . . . . . . . . . Authchips . | . . . . . . . . . . . . . Time . | . . . . . . . . . . . . . Total Robot Build Rating . | . . . . . . . . . . . . . Part Schematics Acquired 14 | . . . . . . . . . . . 14 . Parts Built 2 | . . . . . . . . 2 . . . . Authchips . | . . . . . . . . . . . . . Time 84 | . . . . . . . . 84 . . . . Total Part Build Rating 8 | . . . . . . . . 8 . . . . Parts Repaired . | . . . . . . . . . . . . . Time . | . . . . . . . . . . . . . Parts Recycled . | . . . . . . . . . . . . . Recycled Matter . | . . . . . . . . . . . . . Retrieved Matter . | . . . . . . . . . . . . . Retrieved Components . | . . . . . . . . . . . . . Parts Scanalyzed . | . . . . . . . . . . . . . Part Schematics Acquired . | . . . . . . . . . . . . . Parts Damaged . | . . . . . . . . . . . . . Bothacking | -11 -10 -10 -9 -9 -9 -8 -8 -7 -7 -7 -7 -7 ------------ Run | Jun Mat Min Mat Min Exi Min Mat Fac Low Low Zio Dee Used RIF Installer . | . . . . . . . . . . . . . Robots Hacked . | . . . . . . . . . . . . . Non-combat . | . . . . . . . . . . . . . Combat . | . . . . . . . . . . . . . Robot Hacks Applied . | . . . . . . . . . . . . . Relay Couplers Released 3 | . . . . . . . . 3 . . . . Programmers 3 | . . . . . . . . 3 . . . . Fabnet Peak Effective % . | . . . . . . . . . . . . . Robots Rewired . | . . . . . . . . . . . . . Allies Hacked . | . . . . . . . . . . . . . Hacks Repelled . | . . . . . . . . . . . . . Allies | -11 -10 -10 -9 -9 -9 -8 -8 -7 -7 -7 -7 -7 -------- Run | Jun Mat Min Mat Min Exi Min Mat Fac Low Low Zio Dee Total Allies 1 | . . . . 1 . . . . . . . . Largest Group 1 | . . . . 1 . . . . . . . . Highest-Rated Group 31 | . . . . 31 . . . . . . . . Highest-Rated Ally 31 | . . . . 31 . . . . . . . . Total Orders . | . . . . . . . . . . . . . Ally Attacks . | . . . . . . . . . . . . . Total Damage . | . . . . . . . . . . . . . Kills . | . . . . . . . . . . . . . Allies Corrupted . | . . . . . . . . . . . . . Allies Melted 1 | . . 1 . . . . . . . . . . Intel | -11 -10 -10 -9 -9 -9 -8 -8 -7 -7 -7 -7 -7 ------- Run | Jun Mat Min Mat Min Exi Min Mat Fac Low Low Zio Dee Robot Analysis Total 2 | . . . 2 . . . . . . . . . Derelict Logs Recovered 4 | . . 1 . 1 . . . . . 1 1 . Drone Launches . | . . . . . . . . . . . . . Drone Recoveries . | . . . . . . . . . . . . . Exploration | -11 -10 -10 -9 -9 -9 -8 -8 -7 -7 -7 -7 -7 ------------- Run | Jun Mat Min Mat Min Exi Min Mat Fac Low Low Zio Dee Turns Passed 12277 | 122 406 764 813 1476 698 786 1454 1397 607 553 1650 1551 Spaces Moved 7435 | 57 164 448 363 896 446 489 730 742 330 340 967 1463 Core 61 | 6 . . . . . . . . . . . 55 Treads 6071 | 51 164 448 363 896 446 489 624 742 330 340 967 211 Legs . | . . . . . . . . . . . . . Wheels 106 | . . . . . . . 106 . . . . . Hover 1197 | . . . . . . . . . . . . 1197 Flight . | . . . . . . . . . . . . . Fastest Speed 24 | 50 160 152 155 155 155 155 145 150 150 161 161 24 Average Speed 144 | 148 160 157 155 155 155 155 153 159 161 161 161 90 Slowest Speed 1100 | 160 160 240 155 155 155 155 156 230 225 161 241 1100 Overloaded Moves . | . . . . . . . . . . . . . Propulsion Burnouts . | . . . . . . . . . . . . . Robots Hopped . | . . . . . . . . . . . . . Cave-ins Triggered . | . . . . . . . . . . . . . Exploration Rate (%) 57 | 4 36 86 37 100 63 94 52 25 46 41 86 83 Regions Visited 12 Branch Regions 8 Pre-discovered Areas 3 | . . . . 1 1 . . . . . 1 . Known Exits Taken 5 | . . . 1 . . . . 1 1 1 1 . Unknown Exits Taken 7 | 1 1 1 . 1 1 1 1 . . . . . Scrap Searched 11 | . . 1 . 1 . 1 . . 1 2 5 . Spaces Dug 20 | . . 7 . . . . 5 8 . . . . Terrain Destroyed 237 | . . 17 . 19 . . 30 39 28 . . 104 Melee 13 | . . . . . . . 5 8 . . . . Projectile 7 | . . . . . . . . . . . . 7 AOE 217 | . . 17 . 19 . . 25 31 28 . . 97 Terrain Rammed . | . . . . . . . . . . . . . Walls Destroyed . | . . . . . . . . . . . . . Machines Disabled . | . . . . . . . . . . . . . Actions | -11 -10 -10 -9 -9 -9 -8 -8 -7 -7 -7 -7 -7 --------- Run | Jun Mat Min Mat Min Exi Min Mat Fac Low Low Zio Dee Total 8477 | 78 231 485 507 944 456 505 954 865 370 347 1053 1682 Wait 402 | . 11 14 60 15 . 11 117 26 . . 62 86 Move 7423 | 56 163 447 362 895 445 488 729 741 329 339 966 1463 Hop . | . . . . . . . . . . . . . Pick Up 77 | 8 7 2 13 3 5 . 5 6 1 1 7 19 Fast Attach 58 | 5 1 1 . . . . 3 7 3 2 2 34 Attach 18 | 2 . . 2 . . . 5 2 1 1 . 5 Detach 10 | . . . . . . . 1 2 . 1 . 6 Swap 68 | . 4 7 7 5 . . 15 8 6 . 3 13 Drop 97 | . 6 4 7 4 6 . 7 10 2 3 9 39 Fire 254 | 7 39 10 55 21 . 6 56 17 26 . . 17 Melee 68 | . . . . . . . 16 46 2 . 4 . Ram . | . . . . . . . . . . . . . Kick . | . . . . . . . . . . . . . Crush 2 | . . . 1 1 . . . . . . . . Escape Stasis . | . . . . . . . . . . . . . Rewire . | . . . . . . . . . . . . . Trap . | . . . . . . . . . . . . . Miscellaneous . | . . . . . . . . . . . . . Route ------- -11/Junkyard -10/Materials -10/Mines -9/Materials (discovered 3 exits: *Mat / *Min x2) -9/Mines (discovered 4 exits: *Mat x2 / *Exi / *Zio) -9/Exiles (discovered 2 exits: [*Min x2]) -8/Mines (discovered 2 exits: *Mat x2) -8/Materials -7/Factory (discovered 6 exits: Fac x4 / *Low x2) -7/Lower Caves -7/Lower Caves -7/Zion (discovered 2 exits: *Dee / [*Pro]) -7/Deep Caves (discovered 1 exit: [*Pro]) History --------- Turn | Location | Event 10 | -11/Junkyard | Discovered new exit (range 14) 123 | -11/Junkyard | Entered Materials 314 | -10/Materials | Discovered new exit (range 15) 332 | -10/Materials | Build established: Mutant 529 | -10/Materials | Entered Mines 743 | -10/Mines | Discovered new exit (range 10) 989 | -10/Mines | Met a Derelict who couldn't figure out how to use a Trap Extractor 1092 | -10/Mines | Learned Materials trap positions 1099 | -10/Mines | Assembled infested the area 1104 | -10/Mines | Assisted by a Guerilla fighting off Assembled 1293 | -10/Mines | Entered Materials 1293 | -9/Materials | Evolved 2 slots: Propulsion x1, Utility x1 1294 | -9/Materials | Loaded intel: 22 trap records 1320 | -9/Materials | Identified exit to Mines 1599 | -9/Materials | Discovered new exit (range 10) 1660 | -9/Materials | Build established: Scavenger-Mutant 2106 | -9/Materials | Entered Mines 2299 | -9/Mines | A Derelict revealed a hidden shortcut to a safe place 2381 | -9/Mines | Deemed a non-threat by the Exiles lab entrance 2381 | -9/Mines | Discovered new exit (range 5) 2967 | -9/Mines | Discovered new exit (range 5) 3001 | -9/Mines | Met a Derelict shopkeep closing up shop 3100 | -9/Mines | Received a Mining Laser from a helpful Derelict 3159 | -9/Mines | Discovered new exit (range 8) 3197 | -9/Mines | Received a Rocket Launcher from a helpful Derelict 3240 | -9/Mines | Found a hidden stash of uninstalled traps 3314 | -9/Mines | Learned location of Zion (-7) 3582 | -9/Mines | Entered Exiles 3607 | -9/Exiles | Discovered new exit (range 15) 3621 | -9/Exiles | Met 8R-AWN 3646 | -9/Exiles | Met EX-HEX 3778 | -9/Exiles | Met EX-BIN 3795 | -9/Exiles | Aligned with FarCom system 3796 | -9/Exiles | Given EX-Vault access code 3840 | -9/Exiles | Opened EX-Vault 3851 | -9/Exiles | Found AWS/Thermal 3883 | -9/Exiles | Warned to stay clear of 0b10 Research branches 3933 | -9/Exiles | Met EX-DEC 4266 | -9/Exiles | Discovered new exit (range 10) 4280 | -9/Exiles | Left Exiles lab with AWS/Thermal 4280 | -9/Exiles | Entered Mines 4616 | -8/Mines | Discovered new exit (range 8) 5044 | -8/Mines | Discovered new exit (range 5) 5066 | -8/Mines | Entered Materials 5066 | -8/Materials | Evolved 2 slots: Propulsion x1, Utility x1 6216 | -8/Materials | Discovered new exit (range 5) 6520 | -8/Materials | Entered Factory 6520 | -7/Factory | Evolved 2 slots: Utility x2 6764 | -7/Factory | Fabricated Gauss Cannon? 6955 | -7/Factory | Build established: Mutant 7120 | -7/Factory | Destroyed 7 combat bots 7657 | -7/Factory | Identified exit to Factory 7657 | -7/Factory | Identified exit to Lower Caves 7917 | -7/Factory | Entered Lower Caves 7921 | -7/Lower Caves | Encountered a Warlord checkpoint 8477 | -7/Lower Caves | Discovered new exit (range 16) 8509 | -7/Lower Caves | Identified exit to Lower Caves 8524 | -7/Lower Caves | Entered another Lower Caves area 8817 | -7/Lower Caves | Learned Factory interactive machine intel 8863 | -7/Lower Caves | Discovered new exit (range 8) 8879 | -7/Lower Caves | Identified exit to Zion 9077 | -7/Lower Caves | Entered Zion 9251 | -7/Zion | System corruption cleaned by Quarantine Array 9368 | -7/Zion | Discovered new exit (range 16) 9647 | -7/Zion | Found Prototype Device 9696 | -7/Zion | Acquired unknown access codes intercepted by a Zionite 9802 | -7/Zion | Identified Phasing AFG 9873 | -7/Zion | Found Prototype Special Weapon 9875 | -7/Zion | Found Prototype Special Weapon 9895 | -7/Zion | Found Prototype Special Weapon 9904 | -7/Zion | Found Prototype Special Weapon 10019 | -7/Zion | Learned 12 Factory zone layouts 10219 | -7/Zion | Found GAL Module 10539 | -7/Zion | Rebuked by Imprinter 10692 | -7/Zion | Opened final containment barrier to the Deep Caves 10718 | -7/Zion | Discovered new exit (range 3) 10718 | -7/Zion | Saw the warning signs outside the Deep Caves entrance 10721 | -7/Zion | Identified exit to Deep Caves 10727 | -7/Zion | Entered Deep Caves 11081 | -7/Deep Caves | Z-Facility disabled 11083 | -7/Deep Caves | Attacked by Z-Imprinter 11108 | -7/Deep Caves | Destroyed Z-Imprinter 11139 | -7/Deep Caves | Lost 6 parts (1p4n1u) 11337 | -7/Deep Caves | Found Prototype Device 11337 | -7/Deep Caves | Identified Zio. Metafield Generator 11358 | -7/Deep Caves | Found Prototype Protection 11358 | -7/Deep Caves | Identified Zio. Weapon Casing 11409 | -7/Deep Caves | Found Zio. Weapon Casing 11470 | -7/Deep Caves | Identified RU-N14's Throwing Claymores (x4) 11471 | -7/Deep Caves | Core integrity fell below 50% 11510 | -7/Deep Caves | Lost 4 parts (3n1u) 11531 | -7/Deep Caves | Build established: Scavenger-Mutant 11609 | -7/Deep Caves | Found Zio. Weapon Casing 11620 | -7/Deep Caves | Found Prototype Protection 11620 | -7/Deep Caves | Identified Zio. Heavy Carapace 12006 | -7/Deep Caves | Discovered new exit (range 6) 12257 | -7/Deep Caves | Spotted as-20838 12261 | -7/Deep Caves | Exposed GOLEM chamber 12262 | -7/Deep Caves | Triggered Deep Caves wall 12264 | -7/Deep Caves | Core integrity fell below 20% 12278 | -7/Deep Caves | Destroyed by as-20838 with Assembled Focal Cannon Last Messages --------------- 12006_ EXIT=FOUND 12086_ Acquired Imp. EM Pulse Cannon. 12091_ Acquired EM Pulse Cannon. 12143_ Dropped Zio. Light DM Reactor. 12145_ Acquired Zio. Biocell. 12148_ Dropped Imp. Cooling System. 12149_ Acquired Zio. Biocell. 12249_ Destroyed Carbon-fiber Leg. 12249_ Imp. Heat Sink fried. 12249_ HY-70G(g) destroyed. 12258_ as-20838: "DSI9AT1D G8OHIBQ29FWG 26R186 QD12WHW8W33 TDK1 81FTS" 12260_ Zio. Light Carapace destroyed. 12263_ Zio. Biocell destroyed. 12263_ EM Pulse Cannon destroyed. 12267_ Zio. Glidesys I destroyed. 12268_ Chain reaction triggered in Prototype Reactor. 12269_ as-20838 GOLEM Unit beginning Prototype Reactor integration. 12270_ Imp. EM Pulse Cannon destroyed. 12273_ GC-OT3(M) destroyed. 12278_ Zio. Glidesys I destroyed. Map ----- +----------------------------------------------------+ | ????????????????????????## #??# ##???# | | ????????????????????????# ##?## ##??# | | ????????????????????????# #??### ##### ##?# | | ????????????????????????# #??### ##??## ### | | ????????????????????????# #### #???## | | ????????????????????????# ## #???## | | ????????????????????????## ###< # ####### # | | ?????????????????????????# ##?########?## # | | ?????????????????????????# #???????????# # | | ?????????????????????????# #???????????# | | ?????????????????????????# #??######???## | | ???????????????? ????# #?## ###### | | ?????????????? ##??# ### | | ??????????? #??# | | ????????? #??# ######### | | ??????? = #??#### ##???????# #### | | ???????[ = [ #?????# ##????????# #??## | | ?????? #????## ##?####???# #???## | | ?????? [= #???## ### ##??# #????? | | ????? #???# ##?# #????? | | ????? = ##??# ### #????? | | ????? =! ##?# ## #????? | | ???? **! "#?# ## #????? | | ???? * #?## #????? | | ??? ### ## ######????? | | ??? % @ #### ##?????????? | | ????" ! #??# ##??????????? | | ??? #??## ##???????????? | | ???" s ### ##??#####????????????? | | ???? #?# #???????????????????? | | ???? ##?# #???????????????????? | | ????? # # #??#####???????????????????? | | ????? #### ## ## ##??????????????????????????? | | ????? #????# ?# ?###???????????????????????????? | | ?????? ??????#??# ???????????????????????????????? | | ?????????????????#???????????????????????????????? | | | | | | | | | | | | | | | | | | | | | | | | | | | | | +----------------------------------------------------+ Best States ------------- Heat Dissipation 86 Energy Generation 27 Energy Capacity 700 Matter Stores 500 Matter Capacity 500 Sight Range 16 Robot Scan Range 14 Terrain Scan Density 10 Armor Coverage 1600 Weapon Shielding 100 Weapon Cycling 15 Evasion (%) 74 Targeting Accuracy 8 Recoil Reduction 4 Particle Charging 15 Offensive Hacking 10 Item Schematics ----------------- Recalibrator | -7/Zion | Archive Drone Bay | -7/Zion | Archive Field Propulsion Drive | -7/Zion | Archive Imp. Corruption Screen | -7/Zion | Archive Imp. Shield Generator | -7/Zion | Archive Focal Shield | -7/Zion | Archive Mak. Hammer | -7/Zion | Archive Lgt. Fission Core | -7/Zion | Archive System Restoration Module | -7/Zion | Archive Adv. ECM Suite | -7/Zion | Archive HERF Cannon | -7/Zion | Archive Remote Shield | -7/Zion | Archive Microactuators | -7/Zion | Archive Launcher Guidance Computer | -7/Zion | Archive Robot Schematics ------------------ G-47 Trooper | -7/Zion | Archive H-55 Commando | -7/Zion | Archive S-27 Virus | -7/Zion | Archive Fabricated ------------ Gauss Cannon | x2 | -7/Factory | Preloaded Alien Tech Used ----------------- None Achievements -------------- None Challenges ------------ None Game ------ Seed PointyDispersionMultirail Manual? 0 Play Time 01:06:58 Cumulative 622.9 hours Start 2023.04.05 @ 21:43:47 End 2023.04.05 @ 23:18:51 Sessions 1 Manual Loads 0 Difficulty Rogue Special Mode None Game No. 642 Rogue 641 Adventurer 0 Explorer 1 Win Type - Total 30 Types 21/0/6/3/0/0/0/0/0 Lore% 84 Gallery% 92 Achievement% 78 Wizard Run 0 Options --------- ASCII 0 Keyboard 1 Movement Vi Keybinds 0 Fullscreen 1 Font 18/SmallcapsGlow Map View 76x50 Tactical HUD 1 Map Filters NONE Filters NONE Steam 1 RUN: e2ae4b47-7ebe-453e-bfae-b95528d8d5a3